[Event "Early-Titled-Tuesday-Blitz-March-05-2024"]
[Site "Chess.com"]
[Date "2024.03.05"]
[Round "4"]
[White "Rud_2008"]
[Black "Juicy_Fork"]
[Result "1-0"]
[WhiteElo "2734"]
[BlackElo "2537"]
[TimeControl "180+1"]
[EndTime "8:42:34 PST"]
[Termination "Rud_2008 won on time"]

1. e4 {[%clk 0:03:00.9]} 1... e5 {[%clk 0:03:00.1]} 2. Nf3 {[%clk 0:03:00.5]}
2... Nc6 {[%clk 0:03:00.6]} 3. Bc4 {[%clk 0:03:00.1]} 3... Nf6 {[%clk
0:03:00.6]} 4. d3 {[%clk 0:03:00.6]} 4... Bc5 {[%clk 0:02:59.8]} 5. Bg5 {[%clk
0:03:01.2]} 5... h6 {[%clk 0:02:54.4]} 6. Bh4 {[%clk 0:03:01.6]} 6... O-O {[%clk
0:02:48.8]} 7. a3 {[%clk 0:02:56.9]} 7... Be7 {[%clk 0:02:45]} 8. Nc3 {[%clk
0:02:56.3]} 8... d6 {[%clk 0:02:14.4]} 9. h3 {[%clk 0:02:38.5]} 9... Be6 {[%clk
0:02:10.1]} 10. Qd2 {[%clk 0:02:33.8]} 10... Bxc4 {[%clk 0:01:47.4]} 11. Bxf6
{[%clk 0:02:32]} 11... Be6 {[%clk 0:01:42.5]} 12. Bxe7 {[%clk 0:02:29.5]} 12...
Nxe7 {[%clk 0:01:34.2]} 13. g4 {[%clk 0:02:28]} 13... Ng6 {[%clk 0:01:24.1]} 14.
O-O-O {[%clk 0:02:28.1]} 14... Qf6 {[%clk 0:01:15.9]} 15. Qe2 {[%clk 0:02:11.9]}
15... Nf4 {[%clk 0:01:11.2]} 16. Qf1 {[%clk 0:02:10.9]} 16... Ng6 {[%clk
0:01:03.2]} 17. Qg2 {[%clk 0:02:04.7]} 17... Nf4 {[%clk 0:00:49.6]} 18. Qg3
{[%clk 0:02:04.7]} 18... b5 {[%clk 0:00:49.7]} 19. Kb1 {[%clk 0:02:03.2]} 19...
a5 {[%clk 0:00:46.1]} 20. Nxb5 {[%clk 0:01:53.6]} 20... Rab8 {[%clk 0:00:42.1]}
21. Nc3 {[%clk 0:01:46.9]} 21... Qe7 {[%clk 0:00:26.6]} 22. d4 {[%clk
0:01:35.9]} 22... d5 {[%clk 0:00:20.4]} 23. Ka1 {[%clk 0:01:13]} 23... Rxb2
{[%clk 0:00:13.8]} 24. Kxb2 {[%clk 0:01:13.1]} 24... Rb8+ {[%clk 0:00:13.8]} 25.
Kc1 {[%clk 0:01:13.8]} 25... dxe4 {[%clk 0:00:10]} 26. Nxe5 {[%clk 0:01:13.1]}
26... Qxa3+ {[%clk 0:00:09.1]} 27. Kd2 {[%clk 0:01:13.4]} 27... Ng6 {[%clk
0:00:06.1]} 28. Rb1 {[%clk 0:01:12.9]} 28... Rd8 {[%clk 0:00:05.2]} 29. Nxg6
{[%clk 0:00:47.3]} 29... Rxd4+ {[%clk 0:00:03.5]} 30. Ke1 {[%clk 0:00:45.6]}
30... fxg6 {[%clk 0:00:03.1]} 31. Nb5 {[%clk 0:00:41]} 31... Qa2 {[%clk
0:00:01.5]} 32. Nxd4 {[%clk 0:00:31.4]} 32... Qxb1+ {[%clk 0:00:01.4]} 33. Kd2
{[%clk 0:00:25.3]} 33... Qb4+ {[%clk 0:00:01.6]} 34. Qc3 {[%clk 0:00:22.5]}
34... Qd6 {[%clk 0:00:01.9]} 35. Ke3 {[%clk 0:00:21.6]} 35... Bf7 {[%clk
0:00:01.9]} 36. Ne2 {[%clk 0:00:16.6]} 36... g5 {[%clk 0:00:01.9]} 37. Qd4
{[%clk 0:00:16.6]} 37... Qa3+ {[%clk 0:00:02]} 38. c3 {[%clk 0:00:17]} 38... Kh7
{[%clk 0:00:01.9]} 39. h4 {[%clk 0:00:16]} 39... gxh4 {[%clk 0:00:01.9]} 40.
Rxh4 {[%clk 0:00:16]} 40... Qe7 {[%clk 0:00:02.2]} 41. Qxe4+ {[%clk 0:00:10.9]}
41... Qxe4+ {[%clk 0:00:02.5]} 42. Kxe4 {[%clk 0:00:11.8]} 42... a4 {[%clk
0:00:02.6]} 43. Rh1 {[%clk 0:00:11.3]} 43... a3 {[%clk 0:00:03.5]} 44. Ra1
{[%clk 0:00:12]} 44... a2 {[%clk 0:00:01.7]} 45. Nc1 {[%clk 0:00:12.7]} 1-0

[Event "Early-Titled-Tuesday-Blitz-March-05-2024"]
[Site "Chess.com"]
[Date "2024.03.05"]
[Round "4"]
[White "AlexTruskavetsky"]
[Black "StankovicIvan"]
[Result "1-0"]
[WhiteElo "2694"]
[BlackElo "2515"]
[TimeControl "180+1"]
[EndTime "8:42:34 PST"]
[Termination "AlexTruskavetsky won by resignation"]

1. d4 {[%clk 0:03:00.9]} 1... d5 {[%clk 0:02:58.5]} 2. c4 {[%clk 0:03:01.4]}
2... c6 {[%clk 0:02:58.4]} 3. Nf3 {[%clk 0:03:01.4]} 3... Nf6 {[%clk 0:02:58.5]}
4. e3 {[%clk 0:03:01.9]} 4... a6 {[%clk 0:02:58.9]} 5. b3 {[%clk 0:03:02]} 5...
Bf5 {[%clk 0:02:58]} 6. Bd3 {[%clk 0:03:01.5]} 6... Bxd3 {[%clk 0:02:57.5]} 7.
Qxd3 {[%clk 0:03:02.4]} 7... e6 {[%clk 0:02:57.3]} 8. Nbd2 {[%clk 0:03:02.8]}
8... Nbd7 {[%clk 0:02:46]} 9. O-O {[%clk 0:03:02.9]} 9... Bb4 {[%clk 0:02:36.6]}
10. Bb2 {[%clk 0:02:58.9]} 10... O-O {[%clk 0:02:35]} 11. e4 {[%clk 0:02:48.3]}
11... dxe4 {[%clk 0:02:34.2]} 12. Nxe4 {[%clk 0:02:48.1]} 12... Nxe4 {[%clk
0:02:34.4]} 13. Qxe4 {[%clk 0:02:49]} 13... Be7 {[%clk 0:02:30.2]} 14. Rad1
{[%clk 0:02:47.7]} 14... Bf6 {[%clk 0:02:29.2]} 15. Rd2 {[%clk 0:02:44.4]} 15...
Qa5 {[%clk 0:02:25.8]} 16. a3 {[%clk 0:02:41.1]} 16... Rfe8 {[%clk 0:02:22.1]}
17. Rfd1 {[%clk 0:02:40.3]} 17... Qb6 {[%clk 0:02:16.9]} 18. Qc2 {[%clk
0:02:29.3]} 18... Rac8 {[%clk 0:02:12.2]} 19. Ne5 {[%clk 0:02:29.4]} 19... Qc7
{[%clk 0:01:52.2]} 20. Qe4 {[%clk 0:02:11.9]} 20... Rcd8 {[%clk 0:01:43.2]} 21.
Nf3 {[%clk 0:02:06.4]} 21... c5 {[%clk 0:01:36.4]} 22. Qg4 {[%clk 0:01:30.3]}
22... cxd4 {[%clk 0:01:21.3]} 23. Bxd4 {[%clk 0:01:28.2]} 23... e5 {[%clk
0:01:15.8]} 24. Be3 {[%clk 0:01:11.3]} 24... Nf8 {[%clk 0:01:07.6]} 25. Ng5
{[%clk 0:01:08.8]} 25... Bxg5 {[%clk 0:01:01]} 26. Bxg5 {[%clk 0:01:04.4]} 26...
Rxd2 {[%clk 0:01:00.2]} 27. Rxd2 {[%clk 0:01:05.3]} 27... f6 {[%clk 0:01:00.7]}
28. Bxf6 {[%clk 0:01:04]} 28... Ng6 {[%clk 0:00:54.3]} 29. Bg5 {[%clk
0:01:02.1]} 29... Qf7 {[%clk 0:00:46.9]} 30. Be3 {[%clk 0:00:55.6]} 30... b5
{[%clk 0:00:43.1]} 31. Rd7 {[%clk 0:00:51.7]} 31... Qe6 {[%clk 0:00:42.9]} 32.
Qxe6+ {[%clk 0:00:50.2]} 32... Rxe6 {[%clk 0:00:43.8]} 33. c5 {[%clk 0:00:50.2]}
33... Ne7 {[%clk 0:00:40.1]} 34. b4 {[%clk 0:00:50.4]} 34... Nf5 {[%clk
0:00:37.5]} 35. Kf1 {[%clk 0:00:47.8]} 35... Kf8 {[%clk 0:00:32.9]} 36. Ke2
{[%clk 0:00:47.3]} 36... Ke8 {[%clk 0:00:33.2]} 37. Ra7 {[%clk 0:00:47.5]} 37...
h6 {[%clk 0:00:30.7]} 38. g4 {[%clk 0:00:47]} 38... Ne7 {[%clk 0:00:30.7]} 39.
Kd3 {[%clk 0:00:44.2]} 39... e4+ {[%clk 0:00:28.2]} 40. Kc3 {[%clk 0:00:41.7]}
40... Kf7 {[%clk 0:00:21.4]} 41. Bf4 {[%clk 0:00:32.7]} 41... Kg6 {[%clk
0:00:20.3]} 42. Bd6 {[%clk 0:00:29.1]} 42... Nd5+ {[%clk 0:00:18.3]} 43. Kd4
{[%clk 0:00:28.4]} 43... Nf6 {[%clk 0:00:18]} 44. h3 {[%clk 0:00:25.6]} 44... h5
{[%clk 0:00:18.4]} 45. gxh5+ {[%clk 0:00:25.9]} 45... Nxh5 {[%clk 0:00:18.5]}
46. Rxa6 {[%clk 0:00:22.2]} 46... Kf5 {[%clk 0:00:18.7]} 47. Ra7 {[%clk
0:00:20.4]} 47... g5 {[%clk 0:00:18.4]} 48. a4 {[%clk 0:00:17.1]} 48... bxa4
{[%clk 0:00:17]} 49. Rxa4 {[%clk 0:00:18]} 49... Nf4 {[%clk 0:00:17.3]} 50. Ra3
{[%clk 0:00:17.4]} 50... Ne2+ {[%clk 0:00:17.1]} 51. Kc4 {[%clk 0:00:17.9]}
51... Re8 {[%clk 0:00:15.2]} 52. b5 {[%clk 0:00:18.3]} 52... Nc1 {[%clk
0:00:14]} 53. b6 {[%clk 0:00:18.3]} 53... Nd3 {[%clk 0:00:14.5]} 54. Rxd3 {[%clk
0:00:17.2]} 54... exd3 {[%clk 0:00:14.5]} 55. Kxd3 {[%clk 0:00:18.1]} 55... Ke6
{[%clk 0:00:14.3]} 56. b7 {[%clk 0:00:18.2]} 56... Kd5 {[%clk 0:00:14.9]} 57.
b8=Q {[%clk 0:00:17.2]} 57... Rxb8 {[%clk 0:00:15.4]} 58. Bxb8 {[%clk
0:00:17.7]} 58... Kxc5 {[%clk 0:00:16.3]} 59. Ke4 {[%clk 0:00:18]} 1-0

[Event "Early-Titled-Tuesday-Blitz-March-05-2024"]
[Site "Chess.com"]
[Date "2024.03.05"]
[Round "4"]
[White "chessamical"]
[Black "Qvalda"]
[Result "1-0"]
[WhiteElo "2152"]
[BlackElo "2425"]
[TimeControl "180+1"]
[EndTime "8:42:35 PST"]
[Termination "chessamical won by resignation"]

1. d4 {[%clk 0:02:59.2]} 1... d5 {[%clk 0:02:57.7]} 2. Bf4 {[%clk 0:02:57.7]}
2... Nf6 {[%clk 0:02:57.2]} 3. e3 {[%clk 0:02:58.3]} 3... e6 {[%clk 0:02:57.2]}
4. Nf3 {[%clk 0:02:58.9]} 4... c5 {[%clk 0:02:57.3]} 5. Nbd2 {[%clk 0:02:58]}
5... Nc6 {[%clk 0:02:57.4]} 6. c3 {[%clk 0:02:57.6]} 6... Bd6 {[%clk 0:02:56.9]}
7. Ne5 {[%clk 0:02:53.6]} 7... Qc7 {[%clk 0:02:31.9]} 8. Ndf3 {[%clk 0:02:50.3]}
8... O-O {[%clk 0:02:05.1]} 9. Bd3 {[%clk 0:02:41.2]} 9... Ne4 {[%clk
0:01:37.5]} 10. Nxc6 {[%clk 0:02:39.4]} 10... bxc6 {[%clk 0:01:32.8]} 11. Bxd6
{[%clk 0:02:21]} 11... Qxd6 {[%clk 0:01:22.5]} 12. Bxe4 {[%clk 0:01:57.4]} 12...
dxe4 {[%clk 0:01:19.8]} 13. Nd2 {[%clk 0:01:58]} 13... f5 {[%clk 0:01:15.1]} 14.
Nb3 {[%clk 0:01:54.6]} 14... cxd4 {[%clk 0:01:04.5]} 15. Qxd4 {[%clk 0:01:48.2]}
15... Qxd4 {[%clk 0:00:57.6]} 16. cxd4 {[%clk 0:01:47.3]} 16... Ba6 {[%clk
0:00:50.6]} 17. Rc1 {[%clk 0:01:46.9]} 17... Rfc8 {[%clk 0:00:44.1]} 18. Nc5
{[%clk 0:01:46.9]} 18... Bd3 {[%clk 0:00:34.5]} 19. Nxe6 {[%clk 0:01:19]} 19...
Rab8 {[%clk 0:00:12.2]} 20. b3 {[%clk 0:01:18.5]} 20... a5 {[%clk 0:00:12.6]}
21. Nc5 {[%clk 0:01:18.1]} 21... a4 {[%clk 0:00:10.3]} 22. Nxa4 {[%clk
0:01:13.1]} 22... Ra8 {[%clk 0:00:10.6]} 23. Nb6 {[%clk 0:01:00.8]} 23... Rcb8
{[%clk 0:00:06]} 24. Nxa8 {[%clk 0:01:00.7]} 24... Rxa8 {[%clk 0:00:06.9]} 25.
a4 {[%clk 0:00:59.9]} 25... Rb8 {[%clk 0:00:05.5]} 26. Rc3 {[%clk 0:01:00.5]}
26... Kf7 {[%clk 0:00:05.6]} 27. Kd2 {[%clk 0:01:00.7]} 27... Ke6 {[%clk
0:00:05.7]} 28. Rhc1 {[%clk 0:00:59.8]} 28... Kd7 {[%clk 0:00:03.6]} 29. f3
{[%clk 0:00:50.1]} 29... Rb6 {[%clk 0:00:03.5]} 30. Rxd3 {[%clk 0:00:49.1]}
30... exd3 {[%clk 0:00:03.6]} 31. Rc3 {[%clk 0:00:49.7]} 31... Kd6 {[%clk
0:00:03.2]} 32. Kxd3 {[%clk 0:00:50]} 32... g6 {[%clk 0:00:03]} 33. e4 {[%clk
0:00:50.2]} 33... fxe4+ {[%clk 0:00:02.8]} 34. fxe4 {[%clk 0:00:50.7]} 34... Rb8
{[%clk 0:00:03.4]} 35. e5+ {[%clk 0:00:51.1]} 35... Kd7 {[%clk 0:00:03.4]} 36.
Kc4 {[%clk 0:00:45.4]} 36... Rf8 {[%clk 0:00:02.6]} 37. Rf3 {[%clk 0:00:45.5]}
37... Rb8 {[%clk 0:00:02.2]} 38. b4 {[%clk 0:00:43.2]} 38... Ke7 {[%clk
0:00:02.3]} 39. Kc5 {[%clk 0:00:42.3]} 39... Ra8 {[%clk 0:00:02.1]} 40. a5
{[%clk 0:00:37.7]} 40... Rb8 {[%clk 0:00:02.3]} 41. Kc4 {[%clk 0:00:31.8]} 41...
Kd7 {[%clk 0:00:02]} 42. Rf7+ {[%clk 0:00:30.8]} 42... Ke6 {[%clk 0:00:02.3]}
43. Rf6+ {[%clk 0:00:30.9]} 43... Kd7 {[%clk 0:00:02.1]} 44. Rf7+ {[%clk
0:00:31.2]} 44... Ke6 {[%clk 0:00:02.4]} 45. Rxh7 {[%clk 0:00:31.9]} 45... Rf8
{[%clk 0:00:02.4]} 46. Rg7 {[%clk 0:00:29.8]} 46... Rf2 {[%clk 0:00:01.7]} 47.
Rxg6+ {[%clk 0:00:30.1]} 47... Kd7 {[%clk 0:00:02]} 48. h4 {[%clk 0:00:27.1]}
48... Kc7 {[%clk 0:00:01.6]} 49. h5 {[%clk 0:00:26.8]} 49... Rf1 {[%clk
0:00:01.4]} 50. h6 {[%clk 0:00:26.3]} 50... Rh1 {[%clk 0:00:01.4]} 51. Rg7+
{[%clk 0:00:23.6]} 51... Kb8 {[%clk 0:00:01.1]} 52. h7 {[%clk 0:00:24.1]} 52...
Ka8 {[%clk 0:00:01.2]} 53. Rg8+ {[%clk 0:00:23.6]} 53... Ka7 {[%clk 0:00:01.3]}
54. h8=Q {[%clk 0:00:23.4]} 54... Rc1+ {[%clk 0:00:02.2]} 55. Kb3 {[%clk
0:00:22.4]} 55... Rb1+ {[%clk 0:00:02.1]} 56. Kc3 {[%clk 0:00:21.6]} 56... Rc1+
{[%clk 0:00:02.4]} 57. Kb2 {[%clk 0:00:21.7]} 1-0

[Event "Early-Titled-Tuesday-Blitz-March-05-2024"]
[Site "Chess.com"]
[Date "2024.03.05"]
[Round "4"]
[White "pfalcon1949"]
[Black "ZuraTqebuchava"]
[Result "0-1"]
[WhiteElo "1933"]
[BlackElo "2248"]
[TimeControl "180+1"]
[EndTime "8:42:35 PST"]
[Termination "ZuraTqebuchava won by checkmate"]

1. e4 {[%clk 0:03:00.9]} 1... g6 {[%clk 0:02:59.8]} 2. d4 {[%clk 0:02:59.5]}
2... Bg7 {[%clk 0:03:00.4]} 3. Nc3 {[%clk 0:02:59.8]} 3... c6 {[%clk 0:03:00.8]}
4. f4 {[%clk 0:02:59.9]} 4... d6 {[%clk 0:03:00]} 5. Bd3 {[%clk 0:02:57.6]} 5...
Bxd4 {[%clk 0:02:55.1]} 6. Nf3 {[%clk 0:02:57.7]} 6... Bg7 {[%clk 0:02:54.2]} 7.
O-O {[%clk 0:02:55.8]} 7... Bg4 {[%clk 0:02:51.2]} 8. Kh1 {[%clk 0:02:55.6]}
8... Nf6 {[%clk 0:02:45.1]} 9. h3 {[%clk 0:02:55.9]} 9... Bxf3 {[%clk
0:02:44.8]} 10. Qxf3 {[%clk 0:02:56.1]} 10... Nbd7 {[%clk 0:02:43.2]} 11. Bd2
{[%clk 0:02:53.2]} 11... O-O {[%clk 0:02:41.3]} 12. Rae1 {[%clk 0:02:53.1]}
12... Qc7 {[%clk 0:02:36.1]} 13. g4 {[%clk 0:02:44.4]} 13... Ne8 {[%clk
0:02:27.9]} 14. g5 {[%clk 0:02:38.5]} 14... b5 {[%clk 0:02:25.2]} 15. h4 {[%clk
0:02:28.7]} 15... b4 {[%clk 0:02:24.1]} 16. Nd1 {[%clk 0:02:29.1]} 16... c5
{[%clk 0:02:17.7]} 17. b3 {[%clk 0:02:26.2]} 17... Rc8 {[%clk 0:02:09.4]} 18. h5
{[%clk 0:02:25.1]} 18... Qc6 {[%clk 0:01:41.1]} 19. Kg2 {[%clk 0:02:18.6]} 19...
Nb6 {[%clk 0:01:16.3]} 20. Ne3 {[%clk 0:02:16]} 20... e6 {[%clk 0:01:08.6]} 21.
Rh1 {[%clk 0:02:13.5]} 21... d5 {[%clk 0:01:07.9]} 22. Rh3 {[%clk 0:01:39.5]}
22... c4 {[%clk 0:01:03.1]} 23. exd5 {[%clk 0:01:32]} 23... Nxd5 {[%clk
0:01:00.2]} 24. Be4 {[%clk 0:01:23.9]} 24... cxb3 {[%clk 0:00:43.7]} 25. axb3
{[%clk 0:01:12.9]} 25... Qd6 {[%clk 0:00:31.9]} 26. Nxd5 {[%clk 0:01:07.1]}
26... exd5 {[%clk 0:00:30.7]} 27. Bd3 {[%clk 0:00:56.8]} 27... Nc7 {[%clk
0:00:21.8]} 28. Reh1 {[%clk 0:00:55.6]} 28... Ne6 {[%clk 0:00:18.5]} 29. hxg6
{[%clk 0:00:51.8]} 29... fxg6 {[%clk 0:00:18.5]} 30. Rxh7 {[%clk 0:00:49]} 30...
Nxg5 {[%clk 0:00:16.9]} 31. Rxg7+ {[%clk 0:00:27.3]} 31... Kxg7 {[%clk
0:00:16.8]} 32. Qg3 {[%clk 0:00:22.1]} 32... Nh7 {[%clk 0:00:12.3]} 33. Rxh7+
{[%clk 0:00:19]} 33... Kxh7 {[%clk 0:00:11.6]} 34. Qh4+ {[%clk 0:00:18.3]} 34...
Kg7 {[%clk 0:00:11.1]} 35. Qg5 {[%clk 0:00:13.2]} 35... Qf6 {[%clk 0:00:10.6]}
36. Qxd5 {[%clk 0:00:12.4]} 36... Qc6 {[%clk 0:00:10.7]} 37. Be4 {[%clk
0:00:08.8]} 37... Qxd5 {[%clk 0:00:10.6]} 38. Bxd5 {[%clk 0:00:08.8]} 38... Rxc2
{[%clk 0:00:11]} 39. Kg3 {[%clk 0:00:05.2]} 39... Rxd2 {[%clk 0:00:11.4]} 40.
Bc4 {[%clk 0:00:05.7]} 40... Rb2 {[%clk 0:00:11.1]} 41. Kg4 {[%clk 0:00:05.7]}
41... Rc8 {[%clk 0:00:10.9]} 42. f5 {[%clk 0:00:06.1]} 42... Rxc4+ {[%clk
0:00:10.7]} 43. bxc4 {[%clk 0:00:05.3]} 43... gxf5+ {[%clk 0:00:11.1]} 44. Kxf5
{[%clk 0:00:05.1]} 44... Rc2 {[%clk 0:00:11.5]} 45. Ke5 {[%clk 0:00:06]} 45...
Rxc4 {[%clk 0:00:11.6]} 46. Kd5 {[%clk 0:00:06.9]} 46... Rc3 {[%clk 0:00:12.2]}
47. Kd4 {[%clk 0:00:07]} 47... a5 {[%clk 0:00:12.6]} 48. Kd5 {[%clk 0:00:07.3]}
48... a4 {[%clk 0:00:13.5]} 49. Kd4 {[%clk 0:00:08.2]} 49... a3 {[%clk
0:00:14.2]} 50. Kd5 {[%clk 0:00:09.1]} 50... a2 {[%clk 0:00:15.1]} 51. Kd4
{[%clk 0:00:10]} 51... a1=Q {[%clk 0:00:15.9]} 52. Kd5 {[%clk 0:00:10.9]} 52...
Qd1+ {[%clk 0:00:16.1]} 53. Ke4 {[%clk 0:00:10.9]} 53... Rc2 {[%clk 0:00:14.3]}
54. Ke5 {[%clk 0:00:11.8]} 54... Re2+ {[%clk 0:00:14.7]} 55. Kf4 {[%clk
0:00:12.7]} 55... Qf1+ {[%clk 0:00:15.1]} 56. Kg5 {[%clk 0:00:13.6]} 56... Rg2+
{[%clk 0:00:15.5]} 57. Kh4 {[%clk 0:00:14.5]} 57... Qh1# {[%clk 0:00:15.9]} 0-1

[Event "Early-Titled-Tuesday-Blitz-March-05-2024"]
[Site "Chess.com"]
[Date "2024.03.05"]
[Round "4"]
[White "guillembaches"]
[Black "GaiozNigalidze"]
[Result "0-1"]
[WhiteElo "2525"]
[BlackElo "2704"]
[TimeControl "180+1"]
[EndTime "8:42:38 PST"]
[Termination "GaiozNigalidze won on time"]

1. d4 {[%clk 0:03:00.9]} 1... g6 {[%clk 0:03:00]} 2. Nf3 {[%clk 0:03:01]} 2...
Bg7 {[%clk 0:03:00.3]} 3. c3 {[%clk 0:03:01.3]} 3... a6 {[%clk 0:03:00.5]} 4.
Bg5 {[%clk 0:03:01.6]} 4... b5 {[%clk 0:03:00.6]} 5. Nbd2 {[%clk 0:03:01.9]}
5... Bb7 {[%clk 0:03:00.9]} 6. e4 {[%clk 0:03:00.5]} 6... d6 {[%clk 0:03:00.8]}
7. Bd3 {[%clk 0:03:00.3]} 7... Nd7 {[%clk 0:03:00.8]} 8. O-O {[%clk 0:02:59.8]}
8... Nb6 {[%clk 0:02:59.1]} 9. Re1 {[%clk 0:02:59.2]} 9... Qd7 {[%clk
0:02:50.7]} 10. Qc2 {[%clk 0:02:52.7]} 10... e5 {[%clk 0:02:39.8]} 11. dxe5
{[%clk 0:02:41]} 11... dxe5 {[%clk 0:02:39.7]} 12. Nb3 {[%clk 0:02:40.6]} 12...
h6 {[%clk 0:02:12.5]} 13. Bh4 {[%clk 0:02:34.7]} 13... g5 {[%clk 0:02:12.1]} 14.
Bg3 {[%clk 0:02:34.1]} 14... Qe7 {[%clk 0:02:02.4]} 15. Na5 {[%clk 0:02:28.3]}
15... Rb8 {[%clk 0:01:30.9]} 16. Rad1 {[%clk 0:01:53.8]} 16... h5 {[%clk
0:01:25.9]} 17. h4 {[%clk 0:01:52.6]} 17... g4 {[%clk 0:01:25.8]} 18. Nd2 {[%clk
0:01:45]} 18... Nf6 {[%clk 0:01:16.5]} 19. c4 {[%clk 0:01:36.7]} 19... O-O
{[%clk 0:01:06.3]} 20. cxb5 {[%clk 0:01:23.3]} 20... axb5 {[%clk 0:01:07.2]} 21.
Nxb7 {[%clk 0:01:21.6]} 21... Rxb7 {[%clk 0:01:07.2]} 22. Bxb5 {[%clk
0:01:20.7]} 22... Ra7 {[%clk 0:01:07.1]} 23. a4 {[%clk 0:01:17.2]} 23... Nfd7
{[%clk 0:01:04.5]} 24. Nf1 {[%clk 0:01:09.3]} 24... Nc5 {[%clk 0:00:56.6]} 25.
Ne3 {[%clk 0:00:58.7]} 25... Ne6 {[%clk 0:00:36.4]} 26. Nf5 {[%clk 0:00:55.2]}
26... Qf6 {[%clk 0:00:37]} 27. b3 {[%clk 0:00:45.1]} 27... Nf4 {[%clk
0:00:26.9]} 28. Bf1 {[%clk 0:00:37.6]} 28... Ne6 {[%clk 0:00:24.1]} 29. Rc1
{[%clk 0:00:33.9]} 29... Re8 {[%clk 0:00:21.2]} 30. Bb5 {[%clk 0:00:29.1]} 30...
Rd8 {[%clk 0:00:18.6]} 31. Qe2 {[%clk 0:00:28.9]} 31... Nd4 {[%clk 0:00:18.2]}
32. Nxd4 {[%clk 0:00:28.1]} 32... exd4 {[%clk 0:00:18.8]} 33. Bd3 {[%clk
0:00:27.4]} 33... Rd7 {[%clk 0:00:17.5]} 34. Rc5 {[%clk 0:00:26.5]} 34... Re7
{[%clk 0:00:17.2]} 35. Rxh5 {[%clk 0:00:23.7]} 35... Nd7 {[%clk 0:00:16.4]} 36.
e5 {[%clk 0:00:20.1]} 36... Qb6 {[%clk 0:00:14.5]} 37. Bc4 {[%clk 0:00:16.2]}
37... Nf8 {[%clk 0:00:11.8]} 38. Qe4 {[%clk 0:00:14.8]} 38... Qg6 {[%clk
0:00:10.3]} 39. Bd3 {[%clk 0:00:13.3]} 39... Qxh5 {[%clk 0:00:09.5]} 40. Qxd4
{[%clk 0:00:09.1]} 40... c5 {[%clk 0:00:09.5]} 41. Qd8 {[%clk 0:00:08.9]} 41...
Rad7 {[%clk 0:00:07.8]} 42. Qc8 {[%clk 0:00:08.4]} 42... Rxd3 {[%clk 0:00:07.9]}
43. e6 {[%clk 0:00:07.7]} 43... Rxe6 {[%clk 0:00:07.5]} 44. Rxe6 {[%clk
0:00:07.3]} 44... fxe6 {[%clk 0:00:07.6]} 45. a5 {[%clk 0:00:07.9]} 45... Rxb3
{[%clk 0:00:05.8]} 46. a6 {[%clk 0:00:06.2]} 46... Rb1+ {[%clk 0:00:05.7]} 47.
Kh2 {[%clk 0:00:06]} 47... Ra1 {[%clk 0:00:06.6]} 48. Qb7 {[%clk 0:00:06.1]}
48... Qd5 {[%clk 0:00:06.2]} 49. Qb6 {[%clk 0:00:03.2]} 49... Qd1 {[%clk
0:00:05.7]} 0-1

[Event "Early-Titled-Tuesday-Blitz-March-05-2024"]
[Site "Chess.com"]
[Date "2024.03.05"]
[Round "4"]
[White "annamaja"]
[Black "matagordo"]
[Result "0-1"]
[WhiteElo "2444"]
[BlackElo "2241"]
[TimeControl "180+1"]
[EndTime "8:42:39 PST"]
[Termination "matagordo won on time"]

1. e4 {[%clk 0:03:00.9]} 1... e6 {[%clk 0:02:44.7]} 2. d4 {[%clk 0:03:01.1]}
2... d5 {[%clk 0:02:44.7]} 3. exd5 {[%clk 0:03:00.5]} 3... exd5 {[%clk
0:02:44.4]} 4. c4 {[%clk 0:03:01.4]} 4... Bb4+ {[%clk 0:02:42.7]} 5. Nc3 {[%clk
0:03:01.6]} 5... Nf6 {[%clk 0:02:42.9]} 6. Bd3 {[%clk 0:03:01.9]} 6... O-O
{[%clk 0:02:41.3]} 7. Ne2 {[%clk 0:03:01.6]} 7... dxc4 {[%clk 0:02:38.4]} 8.
Bxc4 {[%clk 0:03:02.5]} 8... Nc6 {[%clk 0:02:38.6]} 9. O-O {[%clk 0:03:02.3]}
9... Bg4 {[%clk 0:02:33.7]} 10. f3 {[%clk 0:03:02]} 10... Bh5 {[%clk 0:02:20.3]}
11. Bg5 {[%clk 0:03:00.9]} 11... h6 {[%clk 0:02:15.6]} 12. Bh4 {[%clk
0:02:56.8]} 12... Re8 {[%clk 0:02:13.4]} 13. Qd3 {[%clk 0:02:24.8]} 13... Na5
{[%clk 0:02:06.7]} 14. Nf4 {[%clk 0:02:15]} 14... Nxc4 {[%clk 0:02:05.8]} 15.
Nxh5 {[%clk 0:02:13.6]} 15... Nxb2 {[%clk 0:02:01.8]} 16. Qd2 {[%clk 0:01:27.2]}
16... Qd6 {[%clk 0:01:55.4]} 17. Bxf6 {[%clk 0:01:13.8]} 17... Nc4 {[%clk
0:01:32.4]} 18. Qc1 {[%clk 0:00:54.8]} 18... Ba3 {[%clk 0:01:32.2]} 19. Qc2
{[%clk 0:00:31.2]} 19... Ne3 {[%clk 0:01:31.5]} 20. Qb3 {[%clk 0:00:27.4]} 20...
Nxf1 {[%clk 0:01:27.6]} 21. Ne4 {[%clk 0:00:21.6]} 21... Qxh2+ {[%clk
0:01:23.4]} 22. Kf2 {[%clk 0:00:08.4]} 22... Qxh5 {[%clk 0:01:18.5]} 23. Qxa3
{[%clk 0:00:04.8]} 23... Rxe4 {[%clk 0:01:13.8]} 24. fxe4 {[%clk 0:00:05.2]}
24... Nh2 {[%clk 0:01:12.5]} 25. Qg3 {[%clk 0:00:03.2]} 25... Ng4+ {[%clk
0:01:09.5]} 26. Kg1 {[%clk 0:00:02.4]} 26... Nxf6 {[%clk 0:01:08.7]} 27. e5
{[%clk 0:00:02.2]} 27... Qg4 {[%clk 0:01:02.9]} 28. Qf2 {[%clk 0:00:01.1]} 28...
Ne4 {[%clk 0:01:02]} 29. Qe3 {[%clk 0:00:01.6]} 29... Rd8 {[%clk 0:00:52.8]} 30.
Rf1 {[%clk 0:00:02.2]} 30... c5 {[%clk 0:00:47.3]} 31. Rf4 {[%clk 0:00:02.1]}
31... Qd1+ {[%clk 0:00:32.4]} 32. Kh2 {[%clk 0:00:02.8]} 32... Ng5 {[%clk
0:00:29]} 33. e6 {[%clk 0:00:02.1]} 33... fxe6 {[%clk 0:00:23.6]} 34. dxc5
{[%clk 0:00:02.4]} 34... Qh5+ {[%clk 0:00:22.3]} 35. Kg1 {[%clk 0:00:01.9]}
35... Rd1+ {[%clk 0:00:22.5]} 36. Kf2 {[%clk 0:00:02.6]} 36... Rd5 {[%clk
0:00:08.6]} 37. c6 {[%clk 0:00:02.9]} 37... bxc6 {[%clk 0:00:07.9]} 38. Qxa7
{[%clk 0:00:03.2]} 38... Rf5 {[%clk 0:00:07.6]} 39. Qa8+ {[%clk 0:00:02.8]}
39... Kh7 {[%clk 0:00:07.8]} 40. Rxf5 {[%clk 0:00:03.4]} 40... exf5 {[%clk
0:00:08.7]} 41. Qxc6 {[%clk 0:00:03.9]} 41... Qh4+ {[%clk 0:00:09]} 42. Kf1
{[%clk 0:00:03.6]} 42... Qf4+ {[%clk 0:00:09.4]} 43. Kg1 {[%clk 0:00:03.1]}
43... Ne4 {[%clk 0:00:09.1]} 44. Qc2 {[%clk 0:00:02.9]} 44... Ng3 {[%clk
0:00:08.2]} 45. a4 {[%clk 0:00:01.8]} 45... Qe3+ {[%clk 0:00:08.5]} 46. Kh2
{[%clk 0:00:01.8]} 46... Nf1+ {[%clk 0:00:08.7]} 47. Kh1 {[%clk 0:00:01.9]}
47... Ng3+ {[%clk 0:00:08.8]} 48. Kh2 {[%clk 0:00:02.1]} 48... Ne2 {[%clk
0:00:08.8]} 49. Qxf5+ {[%clk 0:00:01.7]} 49... Kg8 {[%clk 0:00:07.7]} 50. Qc8+
{[%clk 0:00:01.4]} 50... Kf7 {[%clk 0:00:08.1]} 51. Qd7+ {[%clk 0:00:01.5]}
51... Kg6 {[%clk 0:00:08.5]} 52. Qg4+ {[%clk 0:00:01.3]} 52... Kf6 {[%clk
0:00:07.6]} 0-1